[Event "*** SCC Grand Prix: Titled Tuesday Blitz"]
[Site "Chess.com"]
[Date "2020.06.23"]
[Round "9"]
[White "SiddharthGMJagadeesh"]
[Black "NTBT_DHS"]
[Result "1-0"]
[WhiteElo "2448"]
[BlackElo "2603"]
[TimeControl "180+1"]
[EndTime "11:46:31 PDT"]
[Termination "SiddharthGMJagadeesh won by checkmate"]

1. e4 {[%clk 0:03:00.9]} 1... Nf6 {[%clk 0:03:00.9]} 2. e5 {[%clk 0:03:00.1]}
2... Nd5 {[%clk 0:03:01.4]} 3. c4 {[%clk 0:02:59.7]} 3... Nb6 {[%clk 0:03:01.6]}
4. d4 {[%clk 0:02:59.8]} 4... d6 {[%clk 0:03:02]} 5. exd6 {[%clk 0:02:59.9]}
5... exd6 {[%clk 0:03:02.2]} 6. Nc3 {[%clk 0:02:59.1]} 6... Bf5 {[%clk 0:03:02]}
7. Qf3 {[%clk 0:02:45.8]} 7... Qc8 {[%clk 0:02:49.7]} 8. Bd3 {[%clk 0:02:25.3]}
8... Bxd3 {[%clk 0:02:43.9]} 9. Qxd3 {[%clk 0:02:25.1]} 9... Qe6+ {[%clk
0:02:43.9]} 10. Be3 {[%clk 0:02:24.3]} 10... Nxc4 {[%clk 0:02:39.3]} 11. d5
{[%clk 0:02:19]} 11... Ne5 {[%clk 0:02:16.7]} 12. Qb5+ {[%clk 0:02:15.6]} 12...
Qd7 {[%clk 0:02:15.2]} 13. Qxb7 {[%clk 0:02:15.5]} 13... Be7 {[%clk 0:02:14.9]}
14. Qxa8 {[%clk 0:02:13.1]} 14... O-O {[%clk 0:02:13.6]} 15. Qb7 {[%clk
0:02:06.3]} 15... Qg4 {[%clk 0:02:13.7]} 16. Nge2 {[%clk 0:01:56.8]} 16... Qxg2
{[%clk 0:02:12.3]} 17. O-O-O {[%clk 0:01:56.2]} 17... Nbd7 {[%clk 0:02:03.8]}
18. Rhg1 {[%clk 0:01:48.5]} 18... Qf3 {[%clk 0:02:03.4]} 19. Nd4 {[%clk
0:01:38.1]} 19... Qh5 {[%clk 0:02:02.1]} 20. Nc6 {[%clk 0:01:33.8]} 20... Bf6
{[%clk 0:01:52]} 21. Qxc7 {[%clk 0:01:23.5]} 21... Qxh2 {[%clk 0:01:49.6]} 22.
Nxe5 {[%clk 0:00:47.3]} 22... Nxe5 {[%clk 0:01:50.5]} 23. Kb1 {[%clk 0:00:44.9]}
23... Nf3 {[%clk 0:01:46.7]} 24. Rg3 {[%clk 0:00:40.2]} 24... Qh5 {[%clk
0:01:45.1]} 25. Qc4 {[%clk 0:00:29]} 25... Bxc3 {[%clk 0:01:27.1]} 26. Qxc3
{[%clk 0:00:27.3]} 26... Ne5 {[%clk 0:01:26.2]} 27. Rdg1 {[%clk 0:00:26.3]}
27... g6 {[%clk 0:01:23.9]} 28. Rg5 {[%clk 0:00:24.9]} 28... Qf3 {[%clk
0:01:19.1]} 29. Rxe5 {[%clk 0:00:22.1]} 29... dxe5 {[%clk 0:01:18.9]} 30. Qxe5
{[%clk 0:00:23]} 30... f6 {[%clk 0:00:52.6]} 31. Qe6+ {[%clk 0:00:22.9]} 31...
Rf7 {[%clk 0:00:46.1]} 32. d6 {[%clk 0:00:20.9]} 32... Qc6 {[%clk 0:00:45.9]}
33. Rd1 {[%clk 0:00:20]} 33... Qd7 {[%clk 0:00:45.7]} 34. Qxd7 {[%clk
0:00:19.6]} 34... Rxd7 {[%clk 0:00:46.6]} 35. Bxa7 {[%clk 0:00:18.3]} 35... g5
{[%clk 0:00:42.6]} 36. Bc5 {[%clk 0:00:18.3]} 36... h6 {[%clk 0:00:42]} 37. a4
{[%clk 0:00:18.9]} 37... Kf7 {[%clk 0:00:40.9]} 38. a5 {[%clk 0:00:19.5]} 38...
Ke6 {[%clk 0:00:41]} 39. a6 {[%clk 0:00:20.2]} 39... Rd8 {[%clk 0:00:40.8]} 40.
a7 {[%clk 0:00:20.8]} 40... Kd7 {[%clk 0:00:41.1]} 41. Re1 {[%clk 0:00:20.4]}
41... Kc6 {[%clk 0:00:41.4]} 42. b4 {[%clk 0:00:19]} 42... h5 {[%clk 0:00:41.5]}
43. Re7 {[%clk 0:00:18.9]} 43... h4 {[%clk 0:00:40.3]} 44. Rc7+ {[%clk
0:00:19.3]} 44... Kb5 {[%clk 0:00:40.8]} 45. d7 {[%clk 0:00:20.2]} 45... h3
{[%clk 0:00:40.7]} 46. Rc8 {[%clk 0:00:20.6]} 46... h2 {[%clk 0:00:41.2]} 47.
Rxd8 {[%clk 0:00:16.1]} 47... h1=Q+ {[%clk 0:00:41.6]} 48. Kb2 {[%clk
0:00:16.7]} 48... Qd1 {[%clk 0:00:38]} 49. Rb8+ {[%clk 0:00:10.8]} 49... Kc4
{[%clk 0:00:38.1]} 50. d8=Q {[%clk 0:00:10.8]} 50... Qb3+ {[%clk 0:00:35.2]} 51.
Kc1 {[%clk 0:00:11]} 51... Qc3+ {[%clk 0:00:35.7]} 52. Kd1 {[%clk 0:00:11.5]}
52... Qf3+ {[%clk 0:00:36]} 53. Ke1 {[%clk 0:00:11.3]} 53... Qh1+ {[%clk
0:00:34]} 54. Ke2 {[%clk 0:00:11.5]} 54... Qe4+ {[%clk 0:00:32.7]} 55. Be3
{[%clk 0:00:11.2]} 55... Qg4+ {[%clk 0:00:31.7]} 56. f3 {[%clk 0:00:11]} 56...
Qg2+ {[%clk 0:00:31.6]} 57. Bf2 {[%clk 0:00:11.4]} 57... g4 {[%clk 0:00:30.4]}
58. Qd3# {[%clk 0:00:11.2]} 1-0

[Event "*** SCC Grand Prix: Titled Tuesday Blitz"]
[Site "Chess.com"]
[Date "2020.06.23"]
[Round "9"]
[White "Th3_Hound"]
[Black "goofypenguin96"]
[Result "0-1"]
[WhiteElo "2532"]
[BlackElo "2380"]
[TimeControl "180+1"]
[EndTime "11:46:32 PDT"]
[Termination "goofypenguin96 won by resignation"]

1. e4 {[%clk 0:03:00.9]} 1... c5 {[%clk 0:02:59.3]} 2. Nf3 {[%clk 0:03:00.6]}
2... a6 {[%clk 0:02:59.7]} 3. c4 {[%clk 0:02:59.5]} 3... Nc6 {[%clk 0:02:58.9]}
4. d4 {[%clk 0:02:59.5]} 4... cxd4 {[%clk 0:02:59.8]} 5. Nxd4 {[%clk 0:02:59.8]}
5... g6 {[%clk 0:03:00.3]} 6. Nc3 {[%clk 0:02:59.1]} 6... Bg7 {[%clk 0:03:00.1]}
7. Be3 {[%clk 0:02:59.7]} 7... Nf6 {[%clk 0:02:59.1]} 8. Be2 {[%clk 0:03:00.1]}
8... O-O {[%clk 0:02:57.8]} 9. O-O {[%clk 0:03:00.6]} 9... d6 {[%clk 0:02:58.2]}
10. h3 {[%clk 0:02:59.6]} 10... Nxd4 {[%clk 0:02:56.9]} 11. Bxd4 {[%clk
0:02:59.7]} 11... Be6 {[%clk 0:02:57.8]} 12. Qc2 {[%clk 0:02:59]} 12... Rc8
{[%clk 0:02:57.2]} 13. b3 {[%clk 0:02:56.1]} 13... b5 {[%clk 0:02:55.5]} 14.
cxb5 {[%clk 0:02:55.6]} 14... axb5 {[%clk 0:02:56.4]} 15. Bxb5 {[%clk
0:02:48.6]} 15... Qa5 {[%clk 0:02:53.6]} 16. a4 {[%clk 0:02:45.4]} 16... Nxe4
{[%clk 0:02:38.9]} 17. Bxg7 {[%clk 0:02:39.7]} 17... Kxg7 {[%clk 0:02:38.5]} 18.
Qxe4 {[%clk 0:02:39.3]} 18... Qxc3 {[%clk 0:02:37.7]} 19. a5 {[%clk 0:02:27.8]}
19... Qxb3 {[%clk 0:02:33]} 20. Rfb1 {[%clk 0:02:21.1]} 20... Qc3 {[%clk
0:02:29.4]} 21. Qf4 {[%clk 0:02:08.8]} 21... Rb8 {[%clk 0:02:15.9]} 22. Qa4
{[%clk 0:02:02.6]} 22... Ra8 {[%clk 0:02:01.7]} 23. a6 {[%clk 0:02:01.7]} 23...
Rfc8 {[%clk 0:01:57.8]} 24. Bf1 {[%clk 0:01:53.8]} 24... Qc6 {[%clk 0:01:26.8]}
25. Qd4+ {[%clk 0:01:51.2]} 25... Kg8 {[%clk 0:01:26.9]} 26. Rb7 {[%clk
0:01:48.6]} 26... Rc7 {[%clk 0:00:58.4]} 27. Rxc7 {[%clk 0:01:23.5]} 27... Qxc7
{[%clk 0:00:59.3]} 28. a7 {[%clk 0:01:23.8]} 28... Qb7 {[%clk 0:00:52.9]} 29.
Be2 {[%clk 0:01:14.9]} 29... Bd5 {[%clk 0:00:45.2]} 30. Bf1 {[%clk 0:01:08.5]}
30... e5 {[%clk 0:00:41.4]} 31. Qe3 {[%clk 0:01:08.2]} 31... f5 {[%clk 0:00:37]}
32. Ra5 {[%clk 0:01:06]} 32... Bf7 {[%clk 0:00:30.1]} 33. Qa3 {[%clk 0:01:05.5]}
33... d5 {[%clk 0:00:25.5]} 34. Ra6 {[%clk 0:00:49.3]} 34... e4 {[%clk
0:00:20.5]} 35. Qa5 {[%clk 0:00:32.8]} 35... d4 {[%clk 0:00:15.9]} 36. Bb5
{[%clk 0:00:33.3]} 36... Bd5 {[%clk 0:00:10.8]} 37. Kh2 {[%clk 0:00:23.2]} 37...
d3 {[%clk 0:00:08.3]} 38. g3 {[%clk 0:00:12.9]} 38... d2 {[%clk 0:00:07.4]} 39.
Ba4 {[%clk 0:00:11.2]} 39... Bb3 {[%clk 0:00:03.6]} 40. Rb6 {[%clk 0:00:10.3]}
40... d1=Q {[%clk 0:00:01.7]} 41. Bxb3+ {[%clk 0:00:10.8]} 41... Qxb3 {[%clk
0:00:01.3]} 42. Rxb7 {[%clk 0:00:10.9]} 42... Qxb7 {[%clk 0:00:01.3]} 43. Qc5
{[%clk 0:00:11.6]} 43... Qf7 {[%clk 0:00:02.2]} 44. Qc4 {[%clk 0:00:12.5]} 44...
Rxa7 {[%clk 0:00:03.1]} 45. Qxf7+ {[%clk 0:00:12.9]} 45... Rxf7 {[%clk
0:00:03.4]} 46. g4 {[%clk 0:00:13.8]} 46... Re7 {[%clk 0:00:04.3]} 0-1

[Event "*** SCC Grand Prix: Titled Tuesday Blitz"]
[Site "Chess.com"]
[Date "2020.06.23"]
[Round "9"]
[White "chessmaugli"]
[Black "yamalchess"]
[Result "0-1"]
[WhiteElo "2308"]
[BlackElo "2447"]
[TimeControl "180+1"]
[EndTime "11:46:32 PDT"]
[Termination "yamalchess won on time"]

1. e4 {[%clk 0:03:00.9]} 1... e5 {[%clk 0:02:59.5]} 2. Nf3 {[%clk 0:03:00.5]}
2... Nc6 {[%clk 0:02:59.9]} 3. Bb5 {[%clk 0:03:00.3]} 3... a6 {[%clk 0:02:59.8]}
4. Ba4 {[%clk 0:02:59.4]} 4... Nf6 {[%clk 0:03:00.4]} 5. O-O {[%clk 0:02:59.1]}
5... b5 {[%clk 0:03:01]} 6. Bb3 {[%clk 0:02:58.1]} 6... Bb7 {[%clk 0:03:01.5]}
7. a4 {[%clk 0:02:47.9]} 7... Bc5 {[%clk 0:03:00]} 8. axb5 {[%clk 0:02:31.9]}
8... axb5 {[%clk 0:02:59.1]} 9. Rxa8 {[%clk 0:02:31.2]} 9... Bxa8 {[%clk
0:02:59.2]} 10. Nxe5 {[%clk 0:02:21.2]} 10... Nxe5 {[%clk 0:02:58.6]} 11. d4
{[%clk 0:02:20.4]} 11... Bxd4 {[%clk 0:02:58.8]} 12. Qxd4 {[%clk 0:02:19.4]}
12... d6 {[%clk 0:02:59.4]} 13. f4 {[%clk 0:01:58.7]} 13... Nc6 {[%clk
0:02:58.2]} 14. Qd3 {[%clk 0:01:49.3]} 14... O-O {[%clk 0:02:56.6]} 15. Nc3
{[%clk 0:01:46]} 15... Na5 {[%clk 0:02:39.1]} 16. Ba2 {[%clk 0:01:36.5]} 16...
b4 {[%clk 0:02:33.6]} 17. Nd5 {[%clk 0:01:32.6]} 17... Nxd5 {[%clk 0:02:14.9]}
18. Bxd5 {[%clk 0:01:31]} 18... c6 {[%clk 0:02:08.4]} 19. Ba2 {[%clk 0:01:26.5]}
19... c5 {[%clk 0:02:02.6]} 20. Bd5 {[%clk 0:01:16.7]} 20... Bxd5 {[%clk
0:01:51]} 21. Qxd5 {[%clk 0:01:08.2]} 21... Re8 {[%clk 0:01:39]} 22. Be3 {[%clk
0:00:52.2]} 22... Qe7 {[%clk 0:01:22.9]} 23. Bf2 {[%clk 0:00:51.6]} 23... Qxe4
{[%clk 0:01:15.5]} 24. Re1 {[%clk 0:00:49]} 24... Qxe1+ {[%clk 0:01:12.6]} 25.
Bxe1 {[%clk 0:00:47.9]} 25... Rxe1+ {[%clk 0:01:12.4]} 26. Kf2 {[%clk
0:00:48.2]} 26... Re8 {[%clk 0:01:10.8]} 27. Qxd6 {[%clk 0:00:43.4]} 27... Nc4
{[%clk 0:01:09.4]} 28. Qxc5 {[%clk 0:00:41.4]} 28... Nxb2 {[%clk 0:01:08.2]} 29.
Qxb4 {[%clk 0:00:38.8]} 29... Nd1+ {[%clk 0:01:07.3]} 30. Kf3 {[%clk 0:00:33.2]}
30... Re3+ {[%clk 0:01:06.7]} 31. Kg4 {[%clk 0:00:27.4]} 31... g6 {[%clk
0:01:05.9]} 32. g3 {[%clk 0:00:19.7]} 32... Nf2+ {[%clk 0:01:03.8]} 33. Kh4
{[%clk 0:00:18]} 33... h6 {[%clk 0:00:52.1]} 34. Qd4 {[%clk 0:00:13.6]} 34...
Re2 {[%clk 0:00:50.6]} 35. c4 {[%clk 0:00:11.6]} 35... Ne4 {[%clk 0:00:41.1]}
36. h3 {[%clk 0:00:07.5]} 36... f5 {[%clk 0:00:35.1]} 37. g4 {[%clk 0:00:06.5]}
37... Kf7 {[%clk 0:00:25.2]} 38. gxf5 {[%clk 0:00:06.3]} 38... gxf5 {[%clk
0:00:24.9]} 39. Qd7+ {[%clk 0:00:06.5]} 39... Kf6 {[%clk 0:00:24.5]} 40. Qd8+
{[%clk 0:00:06.4]} 40... Kf7 {[%clk 0:00:24.4]} 41. Qd7+ {[%clk 0:00:05.6]}
41... Kf6 {[%clk 0:00:24.5]} 42. Qc6+ {[%clk 0:00:03.8]} 42... Kf7 {[%clk
0:00:24.4]} 43. c5 {[%clk 0:00:03.3]} 43... Rf2 {[%clk 0:00:21]} 44. Qxh6 {[%clk
0:00:02]} 44... Nf6 {[%clk 0:00:19.3]} 0-1

[Event "*** SCC Grand Prix: Titled Tuesday Blitz"]
[Site "Chess.com"]
[Date "2020.06.23"]
[Round "9"]
[White "vinniethepooh"]
[Black "Gajuchess"]
[Result "1-0"]
[WhiteElo "2582"]
[BlackElo "2738"]
[TimeControl "180+1"]
[EndTime "11:46:33 PDT"]
[Termination "vinniethepooh won by resignation"]

1. d4 {[%clk 0:03:00.9]} 1... g6 {[%clk 0:02:42.3]} 2. c4 {[%clk 0:03:00.9]}
2... Bg7 {[%clk 0:02:43.2]} 3. Nc3 {[%clk 0:03:01.4]} 3... d6 {[%clk 0:02:44.1]}
4. Nf3 {[%clk 0:03:01.6]} 4... Bg4 {[%clk 0:02:43.5]} 5. g3 {[%clk 0:03:02.1]}
5... Nc6 {[%clk 0:02:41.8]} 6. d5 {[%clk 0:03:01.3]} 6... Bxf3 {[%clk 0:02:38]}
7. exf3 {[%clk 0:03:02.2]} 7... Nd4 {[%clk 0:02:37.5]} 8. Be3 {[%clk 0:03:00.1]}
8... c5 {[%clk 0:02:28.5]} 9. Bg2 {[%clk 0:02:48.8]} 9... Nh6 {[%clk 0:02:28.2]}
10. O-O {[%clk 0:02:44.7]} 10... Nhf5 {[%clk 0:02:27.6]} 11. Re1 {[%clk
0:02:42.9]} 11... h5 {[%clk 0:02:25.6]} 12. f4 {[%clk 0:02:39.9]} 12... O-O
{[%clk 0:02:21]} 13. Qd3 {[%clk 0:02:38.7]} 13... a6 {[%clk 0:02:09.5]} 14. a4
{[%clk 0:02:35.5]} 14... Qb6 {[%clk 0:02:08.2]} 15. Be4 {[%clk 0:02:23.1]} 15...
Qxb2 {[%clk 0:02:02.4]} 16. Rab1 {[%clk 0:01:28.1]} 16... Qxc3 {[%clk
0:02:01.6]} 17. Qxc3 {[%clk 0:01:29]} 17... Nf3+ {[%clk 0:02:01.9]} 18. Bxf3
{[%clk 0:01:28.5]} 18... Bxc3 {[%clk 0:02:02.8]} 19. Re2 {[%clk 0:01:24.7]}
19... Rab8 {[%clk 0:02:01.4]} 20. Be4 {[%clk 0:01:20.4]} 20... Nxe3 {[%clk
0:02:00.6]} 21. fxe3 {[%clk 0:01:20.6]} 21... Bb4 {[%clk 0:01:56.9]} 22. Kf2
{[%clk 0:01:17.6]} 22... b5 {[%clk 0:01:56.9]} 23. axb5 {[%clk 0:01:14.3]} 23...
axb5 {[%clk 0:01:57.8]} 24. cxb5 {[%clk 0:01:00.9]} 24... Rxb5 {[%clk
0:01:58.7]} 25. Ra2 {[%clk 0:00:59.2]} 25... Rfb8 {[%clk 0:01:57.6]} 26. Ke2
{[%clk 0:00:58.8]} 26... Bc3 {[%clk 0:01:45.7]} 27. Rxb5 {[%clk 0:00:55.1]}
27... Rxb5 {[%clk 0:01:46.6]} 28. Kd3 {[%clk 0:00:54.9]} 28... Bf6 {[%clk
0:01:46]} 29. h3 {[%clk 0:00:50.4]} 29... Rb3+ {[%clk 0:01:39.8]} 30. Ke2 {[%clk
0:00:50.7]} 30... Kg7 {[%clk 0:01:31]} 31. Bc2 {[%clk 0:00:42.6]} 31... Rc3
{[%clk 0:01:21.9]} 32. Be4 {[%clk 0:00:42.9]} 32... h4 {[%clk 0:01:19.8]} 33. g4
{[%clk 0:00:42.6]} 33... g5 {[%clk 0:01:20.2]} 34. f5 {[%clk 0:00:30.3]} 34...
Be5 {[%clk 0:01:19.8]} 35. Bc2 {[%clk 0:00:26.8]} 35... Rc4 {[%clk 0:01:13.9]}
36. Kd2 {[%clk 0:00:15.5]} 36... Rb4 {[%clk 0:01:07.9]} 37. Ra4 {[%clk
0:00:15.1]} 37... Rb2 {[%clk 0:01:04.7]} 38. Kd3 {[%clk 0:00:15.4]} 38... Kf6
{[%clk 0:00:58.3]} 39. Ra3 {[%clk 0:00:08.6]} 39... c4+ {[%clk 0:00:48.1]} 40.
Kd2 {[%clk 0:00:07.4]} 40... Rb5 {[%clk 0:00:41.6]} 41. e4 {[%clk 0:00:04.2]}
41... Bd4 {[%clk 0:00:11.6]} 42. Ra4 {[%clk 0:00:04.1]} 42... Rxd5 {[%clk
0:00:11.8]} 43. exd5 {[%clk 0:00:03.6]} 1-0

[Event "*** SCC Grand Prix: Titled Tuesday Blitz"]
[Site "Chess.com"]
[Date "2020.06.23"]
[Round "9"]
[White "Rodalquilar"]
[Black "BigAl"]
[Result "0-1"]
[WhiteElo "2627"]
[BlackElo "2491"]
[TimeControl "180+1"]
[EndTime "11:46:33 PDT"]
[Termination "BigAl won by checkmate"]

1. d4 {[%clk 0:03:00.9]} 1... Nf6 {[%clk 0:02:59.3]} 2. c4 {[%clk 0:03:01.2]}
2... g6 {[%clk 0:02:59.6]} 3. Nc3 {[%clk 0:03:01.4]} 3... Bg7 {[%clk 0:03:00.2]}
4. e4 {[%clk 0:03:01.4]} 4... O-O {[%clk 0:03:00.9]} 5. f4 {[%clk 0:03:01.8]}
5... d6 {[%clk 0:03:01.3]} 6. Nf3 {[%clk 0:03:02.3]} 6... c5 {[%clk 0:03:01.9]}
7. dxc5 {[%clk 0:03:03]} 7... Qa5 {[%clk 0:03:01.1]} 8. Bd3 {[%clk 0:03:03.1]}
8... Qxc5 {[%clk 0:03:01.2]} 9. Qe2 {[%clk 0:03:02.4]} 9... Nc6 {[%clk
0:03:01.1]} 10. Be3 {[%clk 0:03:02.3]} 10... Qa5 {[%clk 0:03:01.6]} 11. Rc1
{[%clk 0:03:02.4]} 11... Bg4 {[%clk 0:03:00.9]} 12. O-O {[%clk 0:03:02.5]} 12...
Nd7 {[%clk 0:03:00.1]} 13. Qd2 {[%clk 0:03:02.6]} 13... Nc5 {[%clk 0:02:53.7]}
14. Bb1 {[%clk 0:03:01.8]} 14... Bxf3 {[%clk 0:02:45.1]} 15. Rxf3 {[%clk
0:03:02.7]} 15... Rad8 {[%clk 0:02:44.1]} 16. Rf2 {[%clk 0:02:59.3]} 16... Rfe8
{[%clk 0:02:24.8]} 17. Nd5 {[%clk 0:02:45.4]} 17... Qxd2 {[%clk 0:02:23.4]} 18.
Rxd2 {[%clk 0:02:46.3]} 18... e6 {[%clk 0:01:57.4]} 19. Nc3 {[%clk 0:02:44.7]}
19... e5 {[%clk 0:01:57]} 20. Nb5 {[%clk 0:02:29.9]} 20... exf4 {[%clk
0:01:50.6]} 21. Bxf4 {[%clk 0:02:30.2]} 21... Nxe4 {[%clk 0:01:49.6]} 22. Bxe4
{[%clk 0:02:21.3]} 22... Rxe4 {[%clk 0:01:49.6]} 23. g3 {[%clk 0:02:12.1]} 23...
Nd4 {[%clk 0:01:45.1]} 24. Kf2 {[%clk 0:01:45.7]} 24... a6 {[%clk 0:01:40.7]}
25. Nc3 {[%clk 0:00:53.2]} 25... Re6 {[%clk 0:01:32.5]} 26. Nd5 {[%clk
0:00:46.6]} 26... Rde8 {[%clk 0:01:27.4]} 27. Be3 {[%clk 0:00:33.6]} 27... Nf5
{[%clk 0:00:51.9]} 28. Bf4 {[%clk 0:00:27.3]} 28... Nd4 {[%clk 0:00:51.4]} 29.
Be3 {[%clk 0:00:27.1]} 29... Nf5 {[%clk 0:00:51.7]} 30. Bf4 {[%clk 0:00:27]}
30... Rc8 {[%clk 0:00:30.7]} 31. g4 {[%clk 0:00:19.6]} 31... Nd4 {[%clk
0:00:26]} 32. Be3 {[%clk 0:00:15.9]} 32... Nc6 {[%clk 0:00:23.9]} 33. h3 {[%clk
0:00:09.4]} 33... Ne5 {[%clk 0:00:20.8]} 34. Nb6 {[%clk 0:00:08]} 34... Rce8
{[%clk 0:00:19.8]} 35. Bd4 {[%clk 0:00:06.9]} 35... Nc6 {[%clk 0:00:16.7]} 36.
Bxg7 {[%clk 0:00:06.4]} 36... Kxg7 {[%clk 0:00:17.6]} 37. Rcd1 {[%clk
0:00:07.2]} 37... Re4 {[%clk 0:00:14.1]} 38. Rxd6 {[%clk 0:00:05.6]} 38... Re2+
{[%clk 0:00:13.1]} 39. Kg3 {[%clk 0:00:05.3]} 39... Rxb2 {[%clk 0:00:13.1]} 40.
Rd7 {[%clk 0:00:05.9]} 40... Ree2 {[%clk 0:00:11.7]} 41. Nd5 {[%clk 0:00:03.6]}
41... Rg2+ {[%clk 0:00:09.7]} 42. Kf4 {[%clk 0:00:02.9]} 42... Rbe2 {[%clk
0:00:08.8]} 43. Rf1 {[%clk 0:00:01.7]} 43... h6 {[%clk 0:00:07.5]} 44. g5 {[%clk
0:00:02]} 44... hxg5+ {[%clk 0:00:07.3]} 45. Kf3 {[%clk 0:00:02.6]} 45... Ne5#
{[%clk 0:00:06.8]} 0-1

[Event "*** SCC Grand Prix: Titled Tuesday Blitz"]
[Site "Chess.com"]
[Date "2020.06.23"]
[Round "9"]
[White "BJthechessgod"]
[Black "Kapitan_Bayan"]
[Result "0-1"]
[WhiteElo "2230"]
[BlackElo "2458"]
[TimeControl "180+1"]
[EndTime "11:46:33 PDT"]
[Termination "Kapitan_Bayan won by checkmate"]

1. d4 {[%clk 0:03:00.9]} 1... Nf6 {[%clk 0:02:52]} 2. c4 {[%clk 0:02:58.7]} 2...
e6 {[%clk 0:02:51.4]} 3. Nc3 {[%clk 0:02:56.2]} 3... d5 {[%clk 0:02:51.8]} 4. e3
{[%clk 0:02:54.3]} 4... c6 {[%clk 0:02:50.8]} 5. Nf3 {[%clk 0:02:51.1]} 5...
Nbd7 {[%clk 0:02:51.1]} 6. Bd3 {[%clk 0:02:48]} 6... dxc4 {[%clk 0:02:47.6]} 7.
Bxc4 {[%clk 0:02:47.8]} 7... b5 {[%clk 0:02:47.9]} 8. Bd3 {[%clk 0:02:46.6]}
8... Bb7 {[%clk 0:02:48.3]} 9. O-O {[%clk 0:02:46.3]} 9... Bd6 {[%clk
0:02:41.9]} 10. Bd2 {[%clk 0:02:40.7]} 10... e5 {[%clk 0:02:38.8]} 11. dxe5
{[%clk 0:02:31.8]} 11... Nxe5 {[%clk 0:02:38.4]} 12. Nxe5 {[%clk 0:02:31.5]}
12... Bxe5 {[%clk 0:02:36.3]} 13. Be2 {[%clk 0:02:31.2]} 13... O-O {[%clk
0:02:24.5]} 14. Qc2 {[%clk 0:02:28]} 14... Qe7 {[%clk 0:02:23.9]} 15. Rad1
{[%clk 0:02:26.8]} 15... a6 {[%clk 0:02:22.1]} 16. Bf3 {[%clk 0:02:26.5]} 16...
c5 {[%clk 0:02:13.2]} 17. Bxb7 {[%clk 0:02:12.2]} 17... Qxb7 {[%clk 0:02:14.1]}
18. Qf5 {[%clk 0:02:06.9]} 18... Rfe8 {[%clk 0:02:09.6]} 19. Bc1 {[%clk
0:01:36.9]} 19... c4 {[%clk 0:02:06.8]} 20. Ne2 {[%clk 0:01:28.2]} 20... b4
{[%clk 0:01:51.9]} 21. Nd4 {[%clk 0:01:07.8]} 21... Rad8 {[%clk 0:01:37.6]} 22.
Qf3 {[%clk 0:01:04.4]} 22... Qxf3 {[%clk 0:01:27.6]} 23. Nxf3 {[%clk 0:01:04.2]}
23... Bc7 {[%clk 0:01:27.1]} 24. Bd2 {[%clk 0:00:55.8]} 24... a5 {[%clk
0:01:26.8]} 25. Nd4 {[%clk 0:00:55.8]} 25... Ne4 {[%clk 0:01:22]} 26. Be1 {[%clk
0:00:42]} 26... Bb6 {[%clk 0:01:21.6]} 27. f3 {[%clk 0:00:39.4]} 27... Bxd4
{[%clk 0:01:02.6]} 28. Rxd4 {[%clk 0:00:20.4]} 28... Rxd4 {[%clk 0:00:58.1]} 29.
exd4 {[%clk 0:00:21.3]} 29... Nf6 {[%clk 0:00:58.4]} 30. Bf2 {[%clk 0:00:20.8]}
30... Re2 {[%clk 0:00:56.7]} 31. Rd1 {[%clk 0:00:13]} 31... Rxb2 {[%clk
0:00:47.5]} 32. d5 {[%clk 0:00:13.1]} 32... c3 {[%clk 0:00:47.5]} 33. d6 {[%clk
0:00:12.6]} 33... Nd7 {[%clk 0:00:46.1]} 34. Re1 {[%clk 0:00:11.6]} 34... h6
{[%clk 0:00:31.1]} 35. Bd4 {[%clk 0:00:07.2]} 35... Rd2 {[%clk 0:00:28.7]} 36.
Re7 {[%clk 0:00:02.3]} 36... Rxd4 {[%clk 0:00:25.8]} 37. Rxd7 {[%clk 0:00:02.5]}
37... c2 {[%clk 0:00:26]} 38. Rd8+ {[%clk 0:00:02.7]} 38... Kh7 {[%clk
0:00:25.6]} 39. Rc8 {[%clk 0:00:03.3]} 39... Rd1+ {[%clk 0:00:25.1]} 40. Kf2
{[%clk 0:00:03.2]} 40... c1=Q {[%clk 0:00:26]} 41. Rxc1 {[%clk 0:00:02.5]} 41...
Rxc1 {[%clk 0:00:26.9]} 42. d7 {[%clk 0:00:03.4]} 42... Rd1 {[%clk 0:00:27]} 43.
Ke3 {[%clk 0:00:03.4]} 43... Rxd7 {[%clk 0:00:27]} 44. Ke4 {[%clk 0:00:04.3]}
44... a4 {[%clk 0:00:27]} 45. Ke5 {[%clk 0:00:05.2]} 45... b3 {[%clk 0:00:27.9]}
46. axb3 {[%clk 0:00:05.3]} 46... axb3 {[%clk 0:00:28.8]} 47. f4 {[%clk
0:00:05.5]} 47... b2 {[%clk 0:00:29.7]} 48. f5 {[%clk 0:00:06.4]} 48... b1=Q
{[%clk 0:00:30.3]} 49. g4 {[%clk 0:00:07.3]} 49... Qb5+ {[%clk 0:00:29.1]} 50.
Kf4 {[%clk 0:00:08.2]} 50... Rd4+ {[%clk 0:00:29.4]} 51. Kg3 {[%clk 0:00:09.1]}
51... Qd3+ {[%clk 0:00:29.8]} 52. Kh4 {[%clk 0:00:10]} 52... Qxf5 {[%clk
0:00:28.5]} 53. h3 {[%clk 0:00:10.9]} 53... Qg5+ {[%clk 0:00:27.8]} 54. Kg3
{[%clk 0:00:11.4]} 54... Rd3+ {[%clk 0:00:28.6]} 55. Kh2 {[%clk 0:00:11.6]}
55... Qd2+ {[%clk 0:00:29]} 56. Kg1 {[%clk 0:00:10.8]} 56... Rg3+ {[%clk
0:00:29.3]} 57. Kf1 {[%clk 0:00:11.1]} 57... Rg2 {[%clk 0:00:28.4]} 58. g5
{[%clk 0:00:08.9]} 58... Qf2# {[%clk 0:00:29.3]} 0-1